[Event "1st Bangalore GM-Open-A 2024"]
[Site "Bangalore"]
[Date "2024.01.19"]
[Round "2.11"]
[White "Dere Pushkar"]
[Black "Shyaamnikhil P"]
[Result "1-0"]
[ECO "C03"]
[WhiteElo "2191"]
[BlackElo "2443"]
[Annotator "RC"]
[PlyCount "97"]
[EventDate "2024.01.20"]
[EventType "swiss"]
[EventCountry "IND"]
[SourceTitle "playchess.com"]
[Source "ChessBase"]
[SourceQuality "1"]
[TimeControl "5400+30"]

1. e4 {[%emt 0:24:34]} e6 {[%emt 0:02:55]} 2. d4 {[%emt 0:00:25]} d5 {[%emt 0:00:02]} 3. Nd2 {[%emt 0:00:10]} Be7 {[%emt 0:00:07]} 4. Ngf3 {[%emt 0:00:12]} Nf6 {[%emt 0:02:30]} 5. e5 {[%emt 0:00:11]} Nfd7 {[%emt 0:00:06]} 6. Bd3 {[%emt 0:05:19]} c5 {[%emt 0:00:10]} 7. c3 {[%emt 0:00:09]} b6 {[%emt 0:03:15]} 8. a4 {[%emt 0:03:50]} Ba6 {[%emt 0:05:11]} 9. Bb5 {[%emt 0:00:25]} Bb7 {[%emt 0:00:08]} 10. O-O {[%emt 0:04:26]} O-O {[%emt 0:02:20]} 11. Re1 {[%emt 0:02:09]} c4 {[%emt 0:07:33]} 12. Nf1 {[%emt 0:06:49]} Bc6 {[%emt 0:01:43]} 13. g3 {[%emt 0:05:24]} Re8 {[%emt 0:03:04]} 14. h4 {[%emt 0:03:46]} Nf8 {[%emt 0:03:36]} 15. N1h2 {[%emt 0:03:31]} a6 {[%emt 0:06:42]} 16. Bxc6 {[%emt 0:00:09]} Nxc6 {[%emt 0:00:06]} 17. h5 {[%emt 0:01:54]} h6 {[%emt 0:03:32]} 18. Ng4 {[%emt 0:02:35]} Nh7 {[%emt 0:00:28]} 19. Bf4 {[%emt 0:01:07]} Na5 {[%emt 0:12:51]} 20. Qc2 {[%emt 0:06:38]} Kh8 {[%emt 0:02:22]} 21. Kg2 {[%emt 0:02:52]} Nb3 {[%emt 0:00:59]} 22. Ra2 {[%emt 0:02:43]} Ra7 {[%emt 0:05:30]} 23. Nd2 {[%emt 0:02:01]} Bg5 {[%emt 0:11:54]} 24. Be3 {[%emt 0:06:44]} Nxd2 {[%emt 0:06:27]} 25. Qxd2 {[%emt 0:01:14]} Be7 {[%emt 0:00:29]} 26. f4 {[%emt 0:01:35]} Qd7 {[%emt 0:02:23]} 27. Qc2 {[%emt 0:00:09]} b5 {[%emt 0:00:12]} 28. axb5 {[%emt 0:02:20]} axb5 {[%emt 0:01:15]} 29. Rxa7 {[%emt 0:01:02]} Qxa7 {[%emt 0:00:04]} 30. f5 {[%emt 0:00:47]} exf5 {[%emt 0:03:41]} 31. Qxf5 {[%emt 0:00:05]} Bg5 {[%emt 0:00:03]} 32. Bf4 {[%emt 0:02:25]} Qe7 {[%emt 0:01:38]} 33. Ra1 {[%emt 0:00:15]} Kg8 {[%emt 0:07:12]} 34. Ra6 {[%emt 0:01:01]} b4 {[%emt 0:00:15]} 35. Rd6 {[%emt 0:02:26]} bxc3 {[%emt 0:00:21]} 36. bxc3 {[%emt 0:00:03]} Bxf4 {[%emt 0:01:32]} 37. gxf4 {[%emt 0:00:42]} Rd8 {[%emt 0:00:12]} 38. Nxh6+ {[%emt 0:01:58]} gxh6 {[%emt 0:00:11]} 39. Rxh6 {[%emt 0:00:03]} f6 {[%emt 0:00:15]} 40. Kf3 {[%emt 0:00:44]} Rf8 {[%emt 0:04:22]} 41. e6 {[%emt 0:01:41]} Kh8 {[%emt 0:00:31]} 42. Qxd5 {[%emt 0:00:46]} Rg8 {[%emt 0:01:08]} 43. Qf5 {[%emt 0:01:32]} Qg7 {[%emt 0:00:20]} 44. Rg6 {[%emt 0:01:32]} Qb7+ {[%emt 0:00:05]} 45. d5 {[%emt 0:00:02]} Rd8 {[%emt 0:00:06]} 46. Rh6 {[%emt 0:00:26]} Rf8 {[%emt 0:00:30]} 47. Qxh7+ {[%emt 0:00:14]} Qxh7 {[%emt 0:00:05]} 48. Rxh7+ {[%emt 0:00:03]} Kxh7 {[%emt 0:00:06]} 49. e7 {[%emt 0:00:33]} 1-0

[Event "1st Bangalore GM-Open-A 2024"]
[Site "Bangalore"]
[Date "2024.01.19"]
[Round "2.12"]
[White "Sammed Jaykumar, Shete"]
[Black "Rosh Jain"]
[Result "1-0"]
[ECO "B93"]
[WhiteElo "2441"]
[BlackElo "2221"]
[Annotator "RC"]
[PlyCount "63"]
[EventDate "2024.01.20"]
[EventType "swiss"]
[EventCountry "IND"]
[SourceTitle "playchess.com"]
[Source "ChessBase"]
[SourceQuality "1"]
[TimeControl "5400+30"]

1. e4 {[%emt 0:03:39]} c5 {[%emt 0:00:07]} 2. Nf3 {[%emt 0:00:05]} d6 {[%emt 0:00:11]} 3. d4 {[%emt 0:00:04]} cxd4 {[%emt 0:00:14]} 4. Nxd4 {[%emt 0:00:04]} Nf6 {[%emt 0:00:08]} 5. Nc3 {[%emt 0:00:03]} a6 {[%emt 0:00:09]} 6. f4 {[%emt 0:00:44]} e5 {[%emt 0:00:21]} 7. Nf3 {[%emt 0:00:06]} Nbd7 {[%emt 0:00:18]} 8. a4 {[%emt 0:00:29]} Be7 {[%emt 0:05:35]} 9. Bd3 {[%emt 0:00:32]} Qc7 {[%emt 0:03:19]} 10. O-O {[%emt 0:00:34]} O-O {[%emt 0:01:16]} 11. Kh1 {[%emt 0:00:04]} b6 {[%emt 0:08:12]} 12. Nh4 {[%emt 0:03:45]} Nc5 {[%emt 0:04:39]} 13. fxe5 {[%emt 0:01:49]} dxe5 {[%emt 0:00:19]} 14. Bg5 {[%emt 0:05:45]} Qd8 {[%emt 0:22:58]} 15. Nf5 {[%emt 0:02:06]} Bxf5 {[%emt 0:02:22]} 16. Rxf5 {[%emt 0:00:15]} Ne6 {[%emt 0:16:30]} 17. Bxf6 {[%emt 0:05:00]} Bxf6 {[%emt 0:00:08]} 18. Nd5 {[%emt 0:01:02]} Bg5 {[%emt 0:01:56]} 19. Qf1 {[%emt 0:09:08]} Nf4 {[%emt 0:16:20]} 20. Rxe5 {[%emt 0:02:01]} Nxd5 {[%emt 0:03:04]} 21. Rxd5 {[%emt 0:03:01]} Qe7 {[%emt 0:02:14]} 22. Qf5 {[%emt 0:03:18]} h6 {[%emt 0:01:29]} 23. e5 {[%emt 0:01:01]} g6 {[%emt 0:00:06]} 24. Qe4 {[%emt 0:00:14]} Rfd8 {[%emt 0:03:11]} 25. Rf1 {[%emt 0:10:01]} Rxd5 {[%emt 0:03:17]} 26. Qxd5 {[%emt 0:00:07]} Rd8 {[%emt 0:00:06]} 27. Qe4 {[%emt 0:00:25]} Kg7 {[%emt 0:00:30]} 28. Bxa6 {[%emt 0:01:17]} Re8 {[%emt 0:00:32]} 29. Bc4 {[%emt 0:02:41]} f5 {[%emt 0:01:00]} 30. exf6+ {[%emt 0:02:22]} Bxf6 {[%emt 0:00:08]} 31. Qc6 {[%emt 0:00:21]} Rb8 {[%emt 0:01:23]} 32. Rxf6 {[%emt 0:01:12]} 1-0

[Event "1st Bangalore GM-Open-A 2024"]
[Site "Bangalore"]
[Date "2024.01.19"]
[Round "2.13"]
[White "Sharma Isha"]
[Black "Nitish Belurkar"]
[Result "0-1"]
[ECO "B40"]
[WhiteElo "2183"]
[BlackElo "2435"]
[Annotator "RC"]
[PlyCount "106"]
[EventDate "2024.01.20"]
[EventType "swiss"]
[EventCountry "IND"]
[SourceTitle "playchess.com"]
[Source "ChessBase"]
[SourceQuality "1"]
[TimeControl "5400+30"]

1. e4 {[%emt 0:00:03]} c5 {[%emt 0:03:06]} 2. Nf3 {[%emt 0:00:10]} e6 {[%emt 0:00:14]} 3. d4 {[%emt 0:00:13]} cxd4 {[%emt 0:00:05]} 4. Nxd4 {[%emt 0:00:04]} Nf6 {[%emt 0:00:04]} 5. Nc3 {[%emt 0:00:40]} Nc6 {[%emt 0:00:07]} 6. Nxc6 {[%emt 0:05:00]} bxc6 {[%emt 0:00:07]} 7. Bd3 {[%emt 0:02:08]} d5 {[%emt 0:00:07]} 8. Qe2 {[%emt 0:00:26]} Be7 {[%emt 0:00:21]} 9. O-O {[%emt 0:00:25]} O-O {[%emt 0:01:35]} 10. Re1 {[%emt 0:05:05]} Bb7 {[%emt 0:07:25]} 11. b3 {[%emt 0:07:29]} a5 {[%emt 0:05:47]} 12. Bb2 {[%emt 0:04:25]} Nd7 {[%emt 0:03:03]} 13. Na4 {[%emt 0:00:29]} Re8 {[%emt 0:07:26]} 14. c4 {[%emt 0:11:59]} Rc8 {[%emt 0:07:24]} 15. exd5 {[%emt 0:06:04]} cxd5 {[%emt 0:00:27]} 16. Qg4 {[%emt 0:02:45]} Bf6 {[%emt 0:03:18]} 17. Rad1 {[%emt 0:13:30]} Bxb2 {[%emt 0:05:18]} 18. Nxb2 {[%emt 0:00:07]} Qf6 {[%emt 0:02:05]} 19. Qe2 {[%emt 0:00:17]} Nc5 {[%emt 0:11:21]} 20. Bc2 {[%emt 0:03:33]} g6 {[%emt 0:02:09]} 21. Qe5 {[%emt 0:00:56]} Qxe5 {[%emt 0:00:19]} 22. Rxe5 {[%emt 0:00:05]} Red8 {[%emt 0:00:41]} 23. f3 {[%emt 0:01:08]} Ba6 {[%emt 0:05:15]} 24. Bb1 {[%emt 0:11:20]} f6 {[%emt 0:01:03]} 25. Ree1 {[%emt 0:01:04]} dxc4 {[%emt 0:00:46]} 26. bxc4 {[%emt 0:04:56]} Rb8 {[%emt 0:05:21]} 27. Rxd8+ {[%emt 0:00:12]} Rxd8 {[%emt 0:00:02]} 28. Bc2 {[%emt 0:03:27]} Rd2 {[%emt 0:01:42]} 29. Rc1 {[%emt 0:00:08]} Kf8 {[%emt 0:01:45]} 30. Na4 {[%emt 0:05:03]} Rxc2 {[%emt 0:01:46]} 31. Rxc2 {[%emt 0:00:06]} Nxa4 {[%emt 0:00:02]} 32. c5 {[%emt 0:00:36]} Ke7 {[%emt 0:00:12]} 33. c6 {[%emt 0:00:29]} Kd6 {[%emt 0:02:17]} 34. c7 {[%emt 0:03:16]} Nb6 {[%emt 0:00:52]} 35. a4 {[%emt 0:02:13]} Nc8 {[%emt 0:06:23]} 36. Kf2 {[%emt 0:00:33]} Bb7 {[%emt 0:02:19]} 37. Rc4 {[%emt 0:00:52]} g5 {[%emt 0:01:00]} 38. h4 {[%emt 0:01:10]} h6 {[%emt 0:00:28]} 39. Kg3 {[%emt 0:05:08]} f5 {[%emt 0:01:23]} 40. hxg5 {[%emt 0:00:21]} hxg5 {[%emt 0:00:01]} 41. Kf2 {[%emt 0:00:17]} Bd5 {[%emt 0:00:28]} 42. Rc1 {[%emt 0:00:23]} Bc6 {[%emt 0:00:06]} 43. g3 {[%emt 0:02:13]} Nb6 {[%emt 0:01:19]} 44. f4 {[%emt 0:00:47]} gxf4 {[%emt 0:00:06]} 45. gxf4 {[%emt 0:00:03]} Kxc7 {[%emt 0:00:33]} 46. Rc5 {[%emt 0:00:06]} Nd7 {[%emt 0:00:08]} 47. Rc1 {[%emt 0:01:33]} Nb6 {[%emt 0:00:12]} 48. Rc5 {[%emt 0:00:11]} Nd5 {[%emt 0:01:46]} 49. Rc4 {[%emt 0:00:36]} Kb6 {[%emt 0:00:16]} 50. Kg3 {[%emt 0:00:51]} Nb4 {[%emt 0:00:09]} 51. Rd4 {[%emt 0:00:06]} Kc5 {[%emt 0:00:05]} 52. Rd8 {[%emt 0:00:52]} Bxa4 {[%emt 0:00:03]} 53. Ra8 {[%emt 0:00:06]} Nc6 {[%emt 0:00:09]} 0-1

[Event "1st Bangalore GM-Open-A 2024"]
[Site "Bangalore"]
[Date "2024.01.19"]
[Round "2.14"]
[White "Ilamparthi A R"]
[Black "Frayna, Janelle Mae"]
[Result "1-0"]
[ECO "C26"]
[WhiteElo "2426"]
[BlackElo "2197"]
[Annotator "RC"]
[PlyCount "121"]
[EventDate "2024.01.20"]
[EventType "swiss"]
[EventCountry "IND"]
[SourceTitle "playchess.com"]
[Source "ChessBase"]
[SourceQuality "1"]
[TimeControl "5400+30"]

1. e4 {[%emt 0:02:13]} e5 {[%emt 0:00:12]} 2. Nf3 {[%emt 0:00:04]} Nf6 {[%emt 0:00:26]} 3. d3 {[%emt 0:00:34]} Nc6 {[%emt 0:01:31]} 4. g3 {[%emt 0:00:10]} Bc5 {[%emt 0:00:58]} 5. Bg2 {[%emt 0:00:08]} d6 {[%emt 0:00:05]} 6. O-O {[%emt 0:00:18]} O-O {[%emt 0:00:47]} 7. Nc3 {[%emt 0:01:45]} a5 {[%emt 0:03:04]} 8. h3 {[%emt 0:00:38]} Nd4 {[%emt 0:07:36]} 9. Nxd4 {[%emt 0:06:22]} Bxd4 {[%emt 0:01:27]} 10. Kh2 {[%emt 0:00:07]} c6 {[%emt 0:12:46]} 11. Ne2 {[%emt 0:10:03]} Bb6 {[%emt 0:01:36]} 12. f4 {[%emt 0:00:12]} Re8 {[%emt 0:01:48]} 13. Ng1 {[%emt 0:07:58]} h6 {[%emt 0:06:08]} 14. Nf3 {[%emt 0:02:15]} Nd7 {[%emt 0:06:20]} 15. Nh4 {[%emt 0:03:15]} Nf6 {[%emt 0:07:18]} 16. fxe5 {[%emt 0:08:35]} dxe5 {[%emt 0:00:15]} 17. Qf3 {[%emt 0:00:05]} Re6 {[%emt 0:05:34]} 18. Nf5 {[%emt 0:00:42]} Qf8 {[%emt 0:01:28]} 19. g4 {[%emt 0:07:28]} Nh7 {[%emt 0:02:04]} 20. h4 {[%emt 0:01:11]} Rg6 {[%emt 0:02:41]} 21. Bh3 {[%emt 0:05:17]} Bd7 {[%emt 0:03:07]} 22. Bd2 {[%emt 0:03:31]} Re8 {[%emt 0:01:19]} 23. Qg3 {[%emt 0:05:23]} Bd8 {[%emt 0:08:25]} 24. Rae1 {[%emt 0:08:13]} b5 {[%emt 0:05:25]} 25. Re2 {[%emt 0:02:06]} c5 {[%emt 0:06:19]} 26. Ne3 {[%emt 0:08:28]} Qe7 {[%emt 0:02:38]} 27. Be1 {[%emt 0:02:00]} Qd6 {[%emt 0:01:09]} 28. Ref2 {[%emt 0:02:12]} Be6 {[%emt 0:02:15]} 29. Bc3 {[%emt 0:02:56]} Bc7 {[%emt 0:00:50]} 30. Nf5 {[%emt 0:00:21]} Bxf5 {[%emt 0:01:40]} 31. Rxf5 {[%emt 0:05:48]} Rf6 {[%emt 0:00:56]} 32. Rxf6 {[%emt 0:02:07]} Nxf6 {[%emt 0:00:05]} 33. Qf3 {[%emt 0:00:32]} Qe7 {[%emt 0:00:42]} 34. Qf5 {[%emt 0:01:58]} Nh7 {[%emt 0:01:16]} 35. Bd2 {[%emt 0:01:19]} Qe6 {[%emt 0:03:23]} 36. g5 {[%emt 0:01:00]} hxg5 {[%emt 0:00:24]} 37. hxg5 {[%emt 0:01:11]} Qxf5 {[%emt 0:00:19]} 38. Bxf5 {[%emt 0:00:02]} Nf8 {[%emt 0:00:22]} 39. Be3 {[%emt 0:00:41]} Bd6 {[%emt 0:00:39]} 40. Kg3 {[%emt 0:00:33]} g6 {[%emt 0:00:50]} 41. Bg4 {[%emt 0:00:26]} Ne6 {[%emt 0:00:12]} 42. c3 {[%emt 0:00:40]} Kg7 {[%emt 0:02:17]} 43. Bd1 {[%emt 0:00:18]} Be7 {[%emt 0:00:33]} 44. Bb3 {[%emt 0:00:43]} Rd8 {[%emt 0:00:23]} 45. Bd5 {[%emt 0:00:30]} b4 {[%emt 0:02:26]} 46. Kg4 {[%emt 0:00:21]} Rd7 {[%emt 0:00:11]} 47. Rc1 {[%emt 0:00:18]} Nc7 {[%emt 0:00:19]} 48. Bc4 {[%emt 0:00:03]} Ne6 {[%emt 0:00:35]} 49. cxb4 {[%emt 0:00:46]} cxb4 {[%emt 0:00:26]} 50. Bd5 {[%emt 0:00:40]} Nc7 {[%emt 0:00:16]} 51. Bc4 {[%emt 0:00:46]} Ne6 {[%emt 0:00:01]} 52. Bb6 {[%emt 0:00:17]} a4 {[%emt 0:01:16]} 53. Bxe6 {[%emt 0:00:28]} fxe6 {[%emt 0:00:00]} 54. Rc7 {[%emt 0:00:01]} Rxd3 {[%emt 0:01:47]} 55. Rxe7+ {[%emt 0:00:07]} Kf8 {[%emt 0:00:02]} 56. Bc5 {[%emt 0:00:12]} Kg8 {[%emt 0:00:12]} 57. Rxe6 {[%emt 0:00:33]} Rd2 {[%emt 0:00:01]} 58. Rxg6+ {[%emt 0:00:07]} Kh7 {[%emt 0:00:05]} 59. Rh6+ {[%emt 0:00:12]} Kg7 {[%emt 0:00:01]} 60. Bxb4 {[%emt 0:00:10]} Rxb2 {[%emt 0:00:07]} 61. a3 {[%emt 0:00:17]} 1-0

[Event "1st Bangalore GM-Open-A 2024"]
[Site "Bangalore"]
[Date "2024.01.19"]
[Round "2.15"]
[White "Sangma, Rahul"]
[Black "Tahbaz, Arash"]
[Result "0-1"]
[ECO "E62"]
[WhiteElo "2182"]
[BlackElo "2425"]
[Annotator "RC"]
[PlyCount "66"]
[EventDate "2024.01.20"]
[EventType "swiss"]
[EventCountry "IND"]
[SourceTitle "playchess.com"]
[Source "ChessBase"]
[SourceQuality "1"]
[TimeControl "5400+30"]

1. Nf3 {[%emt 0:00:08]} Nf6 {[%emt 0:01:32]} 2. c4 {[%emt 0:00:03]} g6 {[%emt 0:02:20]} 3. g3 {[%emt 0:00:57]} Bg7 {[%emt 0:00:06]} 4. Bg2 {[%emt 0:00:04]} O-O {[%emt 0:00:06]} 5. O-O {[%emt 0:00:17]} d6 {[%emt 0:00:24]} 6. d4 {[%emt 0:00:18]} c6 {[%emt 0:00:44]} 7. Nc3 {[%emt 0:00:34]} Bf5 {[%emt 0:00:04]} 8. Ne1 {[%emt 0:01:07]} e5 {[%emt 0:01:54]} 9. d5 {[%emt 0:01:55]} cxd5 {[%emt 0:00:05]} 10. cxd5 {[%emt 0:04:56]} a5 {[%emt 0:00:09]} 11. e4 {[%emt 0:08:56]} Bd7 {[%emt 0:00:07]} 12. h3 {[%emt 0:00:10]} Na6 {[%emt 0:03:51]} 13. Nd3 {[%emt 0:00:50]} b5 {[%emt 0:10:16]} 14. Be3 {[%emt 0:00:44]} b4 {[%emt 0:02:40]} 15. Na4 {[%emt 0:00:40]} Bb5 {[%emt 0:02:58]} 16. Re1 {[%emt 0:05:53]} Nd7 {[%emt 0:03:50]} 17. a3 {[%emt 0:00:18]} f5 {[%emt 0:01:22]} 18. axb4 {[%emt 0:10:50]} f4 {[%emt 0:08:04]} 19. Bc1 {[%emt 0:09:27]} Bxd3 {[%emt 0:18:08]} 20. Qxd3 {[%emt 0:00:30]} Nxb4 {[%emt 0:00:05]} 21. Qd1 {[%emt 0:07:05]} Rc8 {[%emt 0:00:06]} 22. Rf1 {[%emt 0:00:23]} Nc2 {[%emt 0:11:33]} 23. Ra2 {[%emt 0:00:27]} Nd4 {[%emt 0:01:31]} 24. Bd2 {[%emt 0:00:20]} fxg3 {[%emt 0:01:16]} 25. fxg3 {[%emt 0:00:12]} Rxf1+ {[%emt 0:00:04]} 26. Qxf1 {[%emt 0:05:46]} Rc2 {[%emt 0:00:36]} 27. Qd3 {[%emt 0:05:23]} Qf6 {[%emt 0:04:20]} 28. Ra1 {[%emt 0:09:31]} Bh6 {[%emt 0:00:43]} 29. Be1 {[%emt 0:00:20]} Re2 {[%emt 0:01:24]} 30. Kh1 {[%emt 0:05:50]} Be3 {[%emt 0:01:21]} 31. Rd1 {[%emt 0:03:45]} Rxg2 {[%emt 0:01:49]} 32. Kxg2 {[%emt 0:01:28]} Qf3+ {[%emt 0:00:08]} 33. Kh2 {[%emt 0:00:01]} Ne2 {[%emt 0:00:10]} 0-1

[Event "1st Bangalore GM-Open-A 2024"]
[Site "Bangalore"]
[Date "2024.01.19"]
[Round "2.16"]
[White "Deepan Chakkravarthy J."]
[Black "Alekhya Mukhopadhyay"]
[Result "1-0"]
[ECO "A01"]
[WhiteElo "2422"]
[BlackElo "2184"]
[Annotator "RC"]
[PlyCount "93"]
[EventDate "2024.01.20"]
[EventType "swiss"]
[EventCountry "IND"]
[SourceTitle "playchess.com"]
[Source "ChessBase"]
[SourceQuality "1"]
[TimeControl "5400+30"]

1. b3 {[%emt 0:00:42]} Nf6 {[%emt 0:02:06]} 2. Bb2 {[%emt 0:00:06]} g6 {[%emt 0:00:16]} 3. g3 {[%emt 0:05:06]} Bg7 {[%emt 0:00:23]} 4. Bg2 {[%emt 0:00:05]} O-O {[%emt 0:00:11]} 5. e4 {[%emt 0:00:03]} d6 {[%emt 0:01:40]} 6. Ne2 {[%emt 0:00:13]} e5 {[%emt 0:01:54]} 7. O-O {[%emt 0:00:28]} d5 {[%emt 0:11:45]} 8. exd5 {[%emt 0:07:10]} Nxd5 {[%emt 0:00:10]} 9. d4 {[%emt 0:00:06]} exd4 {[%emt 0:01:30]} 10. Bxd4 {[%emt 0:00:06]} Bxd4 {[%emt 0:02:43]} 11. Nxd4 {[%emt 0:01:37]} c6 {[%emt 0:09:51]} 12. c4 {[%emt 0:00:33]} Ne7 {[%emt 0:02:40]} 13. Nc3 {[%emt 0:00:11]} Nf5 {[%emt 0:00:50]} 14. Nxf5 {[%emt 0:04:35]} Bxf5 {[%emt 0:00:09]} 15. Re1 {[%emt 0:00:04]} Na6 {[%emt 0:03:34]} 16. Qf3 {[%emt 0:08:36]} Nc5 {[%emt 0:08:31]} 17. g4 {[%emt 0:00:00]} Be6 {[%emt 0:05:53]} 18. Rad1 {[%emt 0:00:00]} Qh4 {[%emt 0:02:42]} 19. h3 {[%emt 0:00:00]} a5 {[%emt 0:08:08]} 20. Qe3 {[%emt 0:06:36]} Qf6 {[%emt 0:05:53]} 21. Rc1 {[%emt 0:15:21]} Nd7 {[%emt 0:06:17]} 22. Ne4 {[%emt 0:00:06]} Qe7 {[%emt 0:00:15]} 23. Rcd1 {[%emt 0:00:11]} Rfd8 {[%emt 0:10:31]} 24. Qc3 {[%emt 0:03:15]} f6 {[%emt 0:07:35]} 25. Rxd7 {[%emt 0:00:30]} Rxd7 {[%emt 0:00:09]} 26. Nxf6+ {[%emt 0:00:06]} Kf7 {[%emt 0:00:17]} 27. Nxd7 {[%emt 0:01:07]} Qxd7 {[%emt 0:00:04]} 28. Qe5 {[%emt 0:01:51]} a4 {[%emt 0:01:36]} 29. f4 {[%emt 0:05:25]} axb3 {[%emt 0:02:31]} 30. axb3 {[%emt 0:00:02]} Re8 {[%emt 0:01:18]} 31. Kh2 {[%emt 0:05:07]} Kg8 {[%emt 0:00:45]} 32. Qf6 {[%emt 0:02:35]} Bf7 {[%emt 0:00:16]} 33. Re5 {[%emt 0:00:28]} Re6 {[%emt 0:01:22]} 34. Rxe6 {[%emt 0:01:41]} Bxe6 {[%emt 0:00:08]} 35. Qe5 {[%emt 0:00:12]} Bf7 {[%emt 0:02:14]} 36. f5 {[%emt 0:00:34]} gxf5 {[%emt 0:01:15]} 37. gxf5 {[%emt 0:00:18]} Kf8 {[%emt 0:00:54]} 38. h4 {[%emt 0:00:26]} Qe7 {[%emt 0:00:32]} 39. Qd4 {[%emt 0:01:05]} Qc7+ {[%emt 0:00:32]} 40. Kh3 {[%emt 0:00:03]} Qe7 {[%emt 0:00:28]} 41. Bf3 {[%emt 0:00:26]} Kg8 {[%emt 0:00:34]} 42. Qf4 {[%emt 0:03:26]} Qd7 {[%emt 0:00:32]} 43. Kg3 {[%emt 0:00:25]} Kf8 {[%emt 0:00:33]} 44. Qb8+ {[%emt 0:01:31]} Ke7 {[%emt 0:00:25]} 45. Qe5+ {[%emt 0:00:06]} Kd8 {[%emt 0:00:34]} 46. f6 {[%emt 0:00:02]} Kc8 {[%emt 0:00:32]} 47. Bg4 {[%emt 0:00:12]} 1-0

[Event "1st Bangalore GM-Open-A 2024"]
[Site "Bangalore"]
[Date "2024.01.19"]
[Round "2.17"]
[White "Nithin Babu"]
[Black "Adireddy Arjun"]
[Result "1-0"]
[ECO "B48"]
[WhiteElo "2177"]
[BlackElo "2415"]
[Annotator "RC"]
[PlyCount "69"]
[EventDate "2024.01.20"]
[EventType "swiss"]
[EventCountry "IND"]
[SourceTitle "playchess.com"]
[Source "ChessBase"]
[SourceQuality "1"]
[TimeControl "5400+30"]

1. e4 {[%emt 0:08:56]} c5 {[%emt 0:00:24]} 2. Nf3 {[%emt 0:00:06]} e6 {[%emt 0:00:19]} 3. d4 {[%emt 0:00:06]} cxd4 {[%emt 0:00:07]} 4. Nxd4 {[%emt 0:00:05]} Nc6 {[%emt 0:00:07]} 5. Nc3 {[%emt 0:00:15]} Qc7 {[%emt 0:00:07]} 6. Be3 {[%emt 0:00:14]} Nf6 {[%emt 0:00:09]} 7. f4 {[%emt 0:00:43]} Bb4 {[%emt 0:00:09]} 8. Ndb5 {[%emt 0:00:39]} Qa5 {[%emt 0:00:11]} 9. e5 {[%emt 0:00:24]} Nd5 {[%emt 0:00:08]} 10. Bd2 {[%emt 0:00:13]} Nxc3 {[%emt 0:00:10]} 11. Bxc3 {[%emt 0:00:30]} Bxc3+ {[%emt 0:00:18]} 12. Nxc3 {[%emt 0:00:16]} Qb4 {[%emt 0:00:08]} 13. Qd2 {[%emt 0:00:34]} Qxb2 {[%emt 0:00:09]} 14. Rb1 {[%emt 0:00:12]} Qa3 {[%emt 0:00:04]} 15. Rb3 {[%emt 0:01:04]} Qa5 {[%emt 0:00:23]} 16. Qd6 {[%emt 0:01:18]} b6 {[%emt 0:00:34]} 17. Bb5 {[%emt 0:08:12]} Nd8 {[%emt 0:23:56]} 18. O-O {[%emt 0:06:17]} Nb7 {[%emt 0:00:24]} 19. Qd4 {[%emt 0:04:42]} Nc5 {[%emt 0:03:35]} 20. f5 {[%emt 0:13:48]} exf5 {[%emt 0:34:40]} 21. Nd5 {[%emt 0:19:25]} Nxb3 {[%emt 0:03:48]} 22. cxb3 {[%emt 0:13:33]} O-O {[%emt 0:23:23]} 23. a4 {[%emt 0:02:31]} Ba6 {[%emt 0:02:06]} 24. b4 {[%emt 0:01:12]} Bxb5 {[%emt 0:00:11]} 25. bxa5 {[%emt 0:00:12]} Bxf1 {[%emt 0:00:05]} 26. Kxf1 {[%emt 0:01:16]} Rae8 {[%emt 0:07:23]} 27. axb6 {[%emt 0:02:06]} axb6 {[%emt 0:00:01]} 28. Nxb6 {[%emt 0:00:33]} f6 {[%emt 0:00:58]} 29. Nxd7 {[%emt 0:01:54]} Rf7 {[%emt 0:00:02]} 30. Qd5 {[%emt 0:00:26]} Rc8 {[%emt 0:00:24]} 31. a5 {[%emt 0:01:08]} f4 {[%emt 0:00:35]} 32. a6 {[%emt 0:00:34]} Rc1+ {[%emt 0:00:05]} 33. Ke2 {[%emt 0:00:33]} Rc2+ {[%emt 0:00:09]} 34. Kd3 {[%emt 0:00:59]} Rc8 {[%emt 0:00:27]} 35. a7 {[%emt 0:00:31]} 1-0

[Event "1st Bangalore GM-Open-A 2024"]
[Site "Bangalore"]
[Date "2024.01.19"]
[Round "2.18"]
[White "Nayak Rajesh"]
[Black "Viani Antonio Dcunha"]
[Result "0-1"]
[ECO "E04"]
[WhiteElo "2170"]
[BlackElo "2407"]
[Annotator "RC"]
[PlyCount "70"]
[EventDate "2024.01.20"]
[EventType "swiss"]
[EventCountry "IND"]
[SourceTitle "playchess.com"]
[Source "ChessBase"]
[SourceQuality "1"]
[TimeControl "5400+30"]

1. d4 {[%emt 0:00:04]} Nf6 {[%emt 0:04:41]} 2. c4 {[%emt 0:00:14]} e6 {[%emt 0:00:19]} 3. Nf3 {[%emt 0:01:06]} d5 {[%emt 0:00:36]} 4. g3 {[%emt 0:02:59]} dxc4 {[%emt 0:03:07]} 5. Bg2 {[%emt 0:00:14]} a6 {[%emt 0:01:03]} 6. O-O {[%emt 0:07:53]} Nc6 {[%emt 0:00:17]} 7. Bg5 {[%emt 0:05:25]} Rb8 {[%emt 0:08:53]} 8. e4 {[%emt 0:06:41]} Be7 {[%emt 0:06:46]} 9. Nc3 {[%emt 0:02:47]} h6 {[%emt 0:03:55]} 10. Bf4 {[%emt 0:04:57]} b5 {[%emt 0:06:52]} 11. d5 {[%emt 0:06:47]} exd5 {[%emt 0:03:09]} 12. Nxd5 {[%emt 0:04:35]} Nxd5 {[%emt 0:03:46]} 13. exd5 {[%emt 0:00:13]} Nb4 {[%emt 0:00:13]} 14. Ne5 {[%emt 0:08:04]} Bb7 {[%emt 0:02:09]} 15. Qg4 {[%emt 0:09:37]} O-O {[%emt 0:09:09]} 16. Bxh6 {[%emt 0:12:02]} Bf6 {[%emt 0:02:37]} 17. Be4 {[%emt 0:01:07]} Bxe5 {[%emt 0:04:45]} 18. Qf5 {[%emt 0:02:52]} Re8 {[%emt 0:00:33]} 19. Qh7+ {[%emt 0:01:24]} Kf8 {[%emt 0:00:06]} 20. Bd2 {[%emt 0:03:15]} c5 {[%emt 0:22:26]} 21. Rfe1 {[%emt 0:09:49]} f5 {[%emt 0:04:03]} 22. Bxf5 {[%emt 0:01:30]} Qxd5 {[%emt 0:02:15]} 23. Be4 {[%emt 0:01:03]} Qg8 {[%emt 0:01:15]} 24. Qh5 {[%emt 0:00:24]} Bxe4 {[%emt 0:02:58]} 25. Rxe4 {[%emt 0:00:06]} Nd3 {[%emt 0:00:31]} 26. Be3 {[%emt 0:02:14]} Qf7 {[%emt 0:01:56]} 27. Qh8+ {[%emt 0:00:58]} Ke7 {[%emt 0:00:02]} 28. Qh3 {[%emt 0:01:23]} Kd6 {[%emt 0:01:43]} 29. Rd1 {[%emt 0:00:02]} Qf3 {[%emt 0:00:43]} 30. Rxd3+ {[%emt 0:01:16]} cxd3 {[%emt 0:00:02]} 31. Qh7 {[%emt 0:00:03]} Re6 {[%emt 0:02:11]} 32. b4 {[%emt 0:00:43]} c4 {[%emt 0:01:01]} 33. Bc5+ {[%emt 0:00:10]} Kc6 {[%emt 0:00:37]} 34. Qh3 {[%emt 0:00:57]} Rbe8 {[%emt 0:00:23]} 35. Re3 {[%emt 0:01:14]} Qd5 {[%emt 0:00:04]} 0-1